[Event "Early-Titled-Tuesday-Blitz-April-02-2024"]
[Site "Chess.com"]
[Date "2024.04.02"]
[Round "11"]
[White "Binary010"]
[Black "Shuvalov"]
[Result "1-0"]
[WhiteElo "2782"]
[BlackElo "2599"]
[TimeControl "180+1"]
[EndTime "10:06:17 PDT"]
[Termination "Binary010 won by resignation"]

1. d4 {[%clk 0:03:00.9]} 1... Nf6 {[%clk 0:02:59.7]} 2. c4 {[%clk 0:03:01.5]}
2... c5 {[%clk 0:02:58.2]} 3. d5 {[%clk 0:03:01.6]} 3... b5 {[%clk 0:02:58.6]}
4. cxb5 {[%clk 0:03:01.8]} 4... a6 {[%clk 0:02:59]} 5. bxa6 {[%clk 0:03:02]}
5... Bxa6 {[%clk 0:02:59.9]} 6. Nc3 {[%clk 0:03:01]} 6... g6 {[%clk 0:02:57.7]}
7. e4 {[%clk 0:03:00.5]} 7... Bxf1 {[%clk 0:02:57.4]} 8. Kxf1 {[%clk 0:03:01.4]}
8... d6 {[%clk 0:02:57.1]} 9. Nf3 {[%clk 0:03:01.7]} 9... Bg7 {[%clk 0:02:57.4]}
10. g3 {[%clk 0:03:02.1]} 10... Nbd7 {[%clk 0:02:57.7]} 11. Kg2 {[%clk
0:03:02.6]} 11... O-O {[%clk 0:02:58.4]} 12. a4 {[%clk 0:03:02.9]} 12... Qb6
{[%clk 0:02:58.2]} 13. Ra3 {[%clk 0:03:03]} 13... Rfb8 {[%clk 0:02:56.8]} 14.
Re1 {[%clk 0:02:59.3]} 14... Qb4 {[%clk 0:02:49.5]} 15. Nd2 {[%clk 0:02:37.8]}
15... c4 {[%clk 0:02:27.3]} 16. Nf3 {[%clk 0:01:59.2]} 16... Nc5 {[%clk
0:02:17.6]} 17. Nd4 {[%clk 0:01:42.3]} 17... Qb7 {[%clk 0:02:03.2]} 18. Nc6
{[%clk 0:01:38.2]} 18... Re8 {[%clk 0:01:53.1]} 19. Nb5 {[%clk 0:01:27.8]} 19...
Ncxe4 {[%clk 0:01:43.3]} 20. Rae3 {[%clk 0:01:16.3]} 20... e6 {[%clk 0:01:16.2]}
21. Rxe4 {[%clk 0:01:09.6]} 21... Nxe4 {[%clk 0:01:13.6]} 22. Rxe4 {[%clk
0:01:10.5]} 22... exd5 {[%clk 0:01:05.8]} 23. Qxd5 {[%clk 0:00:54.9]} 23... Rxe4
{[%clk 0:00:59.5]} 24. Qxe4 {[%clk 0:00:55.8]} 24... Kh8 {[%clk 0:00:50.6]} 25.
Nxd6 {[%clk 0:00:53.3]} 25... Qd7 {[%clk 0:00:47.1]} 26. Ne5 {[%clk 0:00:45.8]}
26... Bxe5 {[%clk 0:00:42.4]} 27. Qxa8+ {[%clk 0:00:44.7]} 27... Kg7 {[%clk
0:00:42.1]} 28. Ne8+ {[%clk 0:00:44.9]} 28... Kf8 {[%clk 0:00:38.7]} 29. Nf6+
{[%clk 0:00:45.1]} 29... Kg7 {[%clk 0:00:37.3]} 30. Nxd7 {[%clk 0:00:44]} 1-0

[Event "Early-Titled-Tuesday-Blitz-April-02-2024"]
[Site "Chess.com"]
[Date "2024.04.02"]
[Round "11"]
[White "wild3000"]
[Black "Orest_Vovk"]
[Result "1-0"]
[WhiteElo "2381"]
[BlackElo "2538"]
[TimeControl "180+1"]
[EndTime "10:06:17 PDT"]
[Termination "wild3000 won by resignation"]

1. d4 {[%clk 0:03:00]} 1... e6 {[%clk 0:02:44.8]} 2. Nf3 {[%clk 0:02:52.6]} 2...
Be7 {[%clk 0:02:43.5]} 3. g3 {[%clk 0:02:52]} 3... g5 {[%clk 0:02:43.1]} 4. c4
{[%clk 0:02:49.1]} 4... g4 {[%clk 0:02:43.3]} 5. Ne5 {[%clk 0:02:49]} 5... h5
{[%clk 0:02:42]} 6. h3 {[%clk 0:02:39.9]} 6... d6 {[%clk 0:02:42.2]} 7. Nd3
{[%clk 0:02:37.4]} 7... Bf6 {[%clk 0:02:42.1]} 8. Be3 {[%clk 0:02:23.7]} 8...
Nc6 {[%clk 0:02:39.7]} 9. Nc3 {[%clk 0:02:20.8]} 9... Nxd4 {[%clk 0:02:39]} 10.
hxg4 {[%clk 0:02:17.3]} 10... hxg4 {[%clk 0:02:38.5]} 11. Rxh8 {[%clk
0:02:17.1]} 11... Bxh8 {[%clk 0:02:39.4]} 12. Bg2 {[%clk 0:02:14.7]} 12... c5
{[%clk 0:02:34.1]} 13. Bf4 {[%clk 0:02:06.2]} 13... e5 {[%clk 0:02:31.8]} 14.
Bd2 {[%clk 0:02:02.4]} 14... Ne7 {[%clk 0:02:31.3]} 15. e3 {[%clk 0:01:54.3]}
15... f5 {[%clk 0:02:23.8]} 16. exd4 {[%clk 0:01:52.6]} 16... cxd4 {[%clk
0:02:24.2]} 17. Nd5 {[%clk 0:01:51.2]} 17... e4 {[%clk 0:02:24.5]} 18. N3f4
{[%clk 0:01:50.4]} 18... Nxd5 {[%clk 0:02:19.8]} 19. cxd5 {[%clk 0:01:50.3]}
19... Qb6 {[%clk 0:02:16.8]} 20. Qb3 {[%clk 0:01:44.2]} 20... Qxb3 {[%clk
0:02:11.2]} 21. axb3 {[%clk 0:01:45.1]} 21... Bd7 {[%clk 0:02:10.2]} 22. Bb4
{[%clk 0:01:41.2]} 22... Ke7 {[%clk 0:02:07.5]} 23. Ng6+ {[%clk 0:01:39.2]}
23... Kf6 {[%clk 0:02:07.5]} 24. Nxh8 {[%clk 0:01:39.2]} 24... Rxh8 {[%clk
0:02:07.5]} 25. Bxd6 {[%clk 0:01:37.7]} 25... Bb5 {[%clk 0:02:04.5]} 26. Bc5
{[%clk 0:01:27.5]} 26... Ke5 {[%clk 0:01:50.9]} 27. Ra5 {[%clk 0:01:25.6]} 27...
a6 {[%clk 0:01:47.7]} 28. d6 {[%clk 0:01:23.1]} 28... Kd5 {[%clk 0:01:40.9]} 29.
b4 {[%clk 0:01:17]} 29... Rh2 {[%clk 0:01:25]} 30. Rxb5 {[%clk 0:01:13.6]} 30...
axb5 {[%clk 0:01:21.7]} 31. d7 {[%clk 0:01:13.8]} 31... Rh8 {[%clk 0:01:21.4]}
32. Bb6 {[%clk 0:01:11.6]} 32... Kc4 {[%clk 0:01:20.9]} 33. d8=Q {[%clk
0:01:11.3]} 33... Rxd8 {[%clk 0:01:20.1]} 34. Bxd8 {[%clk 0:01:12.2]} 34... Kxb4
{[%clk 0:01:20.5]} 35. Bf6 {[%clk 0:01:12.2]} 35... Kc4 {[%clk 0:01:18.6]} 36.
Kd2 {[%clk 0:01:10.1]} 36... b4 {[%clk 0:01:16.5]} 37. Bf1+ {[%clk 0:01:02.5]}
37... d3 {[%clk 0:01:14.7]} 38. Be5 {[%clk 0:00:59]} 38... Kd5 {[%clk 0:01:14]}
39. Bh8 {[%clk 0:00:58.3]} 39... Kc4 {[%clk 0:01:14]} 40. Ke3 {[%clk 0:00:55.8]}
40... b6 {[%clk 0:01:09.5]} 41. Bg7 {[%clk 0:00:55.7]} 41... b5 {[%clk
0:01:09.1]} 42. Bh8 {[%clk 0:00:55.4]} 42... Kb3 {[%clk 0:01:07.8]} 43. Bxd3
{[%clk 0:00:55.2]} 43... exd3 {[%clk 0:01:07.7]} 44. Kxd3 {[%clk 0:00:56.1]}
44... Ka2 {[%clk 0:01:06.8]} 45. Ke3 {[%clk 0:00:55.2]} 45... b3 {[%clk
0:01:06.7]} 46. Kf4 {[%clk 0:00:55.3]} 1-0

[Event "Early-Titled-Tuesday-Blitz-April-02-2024"]
[Site "Chess.com"]
[Date "2024.04.02"]
[Round "11"]
[White "colegiodemadrid"]
[Black "IMchanged"]
[Result "0-1"]
[WhiteElo "2528"]
[BlackElo "2679"]
[TimeControl "180+1"]
[EndTime "10:06:18 PDT"]
[Termination "IMchanged won by resignation"]

1. e4 {[%clk 0:02:59.1]} 1... c6 {[%clk 0:02:58.5]} 2. d4 {[%clk 0:02:55.7]}
2... d5 {[%clk 0:02:58.9]} 3. Nc3 {[%clk 0:02:56.4]} 3... dxe4 {[%clk
0:02:58.5]} 4. Nxe4 {[%clk 0:02:57.3]} 4... Nf6 {[%clk 0:02:59.1]} 5. Nxf6+
{[%clk 0:02:57.1]} 5... exf6 {[%clk 0:03:00]} 6. c3 {[%clk 0:02:55.1]} 6... g6
{[%clk 0:03:00.4]} 7. Bd3 {[%clk 0:02:55.6]} 7... Bg7 {[%clk 0:03:00.8]} 8. Qc2
{[%clk 0:02:56.1]} 8... O-O {[%clk 0:03:01.1]} 9. Bd2 {[%clk 0:02:52.6]} 9...
Re8+ {[%clk 0:03:00.2]} 10. Ne2 {[%clk 0:02:52.1]} 10... Bg4 {[%clk 0:02:58.6]}
11. f3 {[%clk 0:02:51.7]} 11... Be6 {[%clk 0:02:58.5]} 12. h4 {[%clk 0:02:51.2]}
12... h5 {[%clk 0:02:57.9]} 13. O-O-O {[%clk 0:02:49.8]} 13... a5 {[%clk
0:02:54.1]} 14. Kb1 {[%clk 0:02:49.8]} 14... Qd5 {[%clk 0:02:45.2]} 15. c4
{[%clk 0:02:44.9]} 15... Qd7 {[%clk 0:02:44.9]} 16. Bc3 {[%clk 0:02:42.6]} 16...
b5 {[%clk 0:02:42.4]} 17. d5 {[%clk 0:02:15]} 17... cxd5 {[%clk 0:02:38.6]} 18.
Be4 {[%clk 0:02:15.1]} 18... dxe4 {[%clk 0:02:26.8]} 19. Rxd7 {[%clk 0:02:14.1]}
19... Nxd7 {[%clk 0:02:27.6]} 20. cxb5 {[%clk 0:02:04.1]} 20... exf3 {[%clk
0:02:26.6]} 21. Nd4 {[%clk 0:02:02.9]} 21... fxg2 {[%clk 0:02:09.5]} 22. Qxg2
{[%clk 0:02:03.8]} 22... Bg4 {[%clk 0:02:07.6]} 23. Re1 {[%clk 0:01:56.3]} 23...
Ne5 {[%clk 0:02:05.9]} 24. Nc6 {[%clk 0:01:49.3]} 24... Bf3 {[%clk 0:01:46.7]}
25. Qf1 {[%clk 0:01:41]} 25... Bd5 {[%clk 0:01:35.1]} 26. Nxe5 {[%clk
0:01:27.7]} 26... fxe5 {[%clk 0:01:35.5]} 27. a4 {[%clk 0:01:26.4]} 27... Bb3
{[%clk 0:01:32.1]} 28. b6 {[%clk 0:01:02.5]} 28... Bxa4 {[%clk 0:01:29.7]} 29.
Qc4 {[%clk 0:01:01.9]} 29... Bd7 {[%clk 0:01:28]} 30. Qc7 {[%clk 0:01:00]} 30...
Bf5+ {[%clk 0:01:26.2]} 31. Ka1 {[%clk 0:00:59.3]} 31... Rac8 {[%clk 0:01:26.1]}
32. Qd6 {[%clk 0:00:52.7]} 32... Rc4 {[%clk 0:01:23.1]} 33. Ka2 {[%clk
0:00:45.6]} 33... Bc2 {[%clk 0:01:18.1]} 34. b3 {[%clk 0:00:20.1]} 34... Rxc3
{[%clk 0:01:18.1]} 35. Kb2 {[%clk 0:00:20.5]} 35... e4 {[%clk 0:01:17.5]} 36. b7
{[%clk 0:00:16.9]} 36... Rc6+ {[%clk 0:01:17.3]} 0-1

[Event "Early-Titled-Tuesday-Blitz-April-02-2024"]
[Site "Chess.com"]
[Date "2024.04.02"]
[Round "11"]
[White "wqws"]
[Black "Kostya0705"]
[Result "1-0"]
[WhiteElo "2723"]
[BlackElo "2565"]
[TimeControl "180+1"]
[EndTime "10:06:20 PDT"]
[Termination "wqws won by resignation"]

1. e4 {[%clk 0:03:00.9]} 1... c5 {[%clk 0:02:58.6]} 2. Nf3 {[%clk 0:03:01.3]}
2... e6 {[%clk 0:02:58.6]} 3. d4 {[%clk 0:03:01.6]} 3... cxd4 {[%clk 0:02:59.5]}
4. Nxd4 {[%clk 0:03:02.5]} 4... Nc6 {[%clk 0:02:59.9]} 5. Nc3 {[%clk 0:03:03.1]}
5... Qc7 {[%clk 0:02:59.6]} 6. Be3 {[%clk 0:03:03.3]} 6... a6 {[%clk 0:03:00.1]}
7. Qd2 {[%clk 0:03:03.8]} 7... Nf6 {[%clk 0:02:59.2]} 8. O-O-O {[%clk
0:03:04.4]} 8... b5 {[%clk 0:02:57.9]} 9. f3 {[%clk 0:03:03.9]} 9... h5 {[%clk
0:02:53]} 10. Kb1 {[%clk 0:03:04.3]} 10... Be7 {[%clk 0:02:52.8]} 11. h3 {[%clk
0:02:59.1]} 11... h4 {[%clk 0:02:35.2]} 12. Nce2 {[%clk 0:02:54.1]} 12... Bb7
{[%clk 0:02:33.2]} 13. Nxc6 {[%clk 0:02:49.7]} 13... Bxc6 {[%clk 0:02:32.2]} 14.
Nf4 {[%clk 0:02:32.6]} 14... b4 {[%clk 0:02:22.7]} 15. Nd3 {[%clk 0:02:31.9]}
15... a5 {[%clk 0:02:21.3]} 16. Bf4 {[%clk 0:02:27.1]} 16... d6 {[%clk
0:02:19.8]} 17. e5 {[%clk 0:02:22.8]} 17... Nd5 {[%clk 0:02:16.9]} 18. exd6
{[%clk 0:02:23.1]} 18... Bxd6 {[%clk 0:02:16.2]} 19. Bxd6 {[%clk 0:02:23.6]}
19... Qxd6 {[%clk 0:02:16]} 20. Qg5 {[%clk 0:02:22.7]} 20... Kf8 {[%clk
0:02:10.3]} 21. Be2 {[%clk 0:02:21.1]} 21... a4 {[%clk 0:02:09.4]} 22. Qe5
{[%clk 0:02:20.4]} 22... Qxe5 {[%clk 0:02:07.2]} 23. Nxe5 {[%clk 0:02:20.2]}
23... Bb7 {[%clk 0:02:08.1]} 24. Bc4 {[%clk 0:02:15.2]} 24... Ke7 {[%clk
0:02:06.7]} 25. Bxd5 {[%clk 0:02:13.7]} 25... Bxd5 {[%clk 0:02:07.4]} 26. Rd4
{[%clk 0:02:13.4]} 26... b3 {[%clk 0:02:02.8]} 27. cxb3 {[%clk 0:02:13.5]} 27...
axb3 {[%clk 0:02:03.7]} 28. a3 {[%clk 0:02:14.4]} 28... Rac8 {[%clk 0:02:02]}
29. Rd2 {[%clk 0:02:02.6]} 29... Rc7 {[%clk 0:02:00.8]} 30. Rc1 {[%clk
0:02:02.2]} 30... Rhc8 {[%clk 0:01:58.9]} 31. Rxc7+ {[%clk 0:01:55.4]} 31...
Rxc7 {[%clk 0:01:59.8]} 32. Rd3 {[%clk 0:01:55.9]} 32... f6 {[%clk 0:01:40]} 33.
Ng4 {[%clk 0:01:52.6]} 33... Kd6 {[%clk 0:01:34.9]} 34. Rc3 {[%clk 0:01:47]}
34... Rxc3 {[%clk 0:01:27.3]} 35. bxc3 {[%clk 0:01:47.9]} 35... e5 {[%clk
0:01:27.3]} 36. Kb2 {[%clk 0:01:46.8]} 36... Kc5 {[%clk 0:01:26.1]} 37. Ne3
{[%clk 0:01:46.3]} 37... Be6 {[%clk 0:01:25.6]} 38. Nf1 {[%clk 0:01:38.8]} 38...
f5 {[%clk 0:01:24.8]} 39. Nd2 {[%clk 0:01:38.2]} 39... Bd5 {[%clk 0:01:18.2]}
40. Nxb3+ {[%clk 0:01:38.3]} 40... Kb5 {[%clk 0:01:17.2]} 41. Nd2 {[%clk
0:01:38.6]} 41... e4 {[%clk 0:01:15.2]} 42. fxe4 {[%clk 0:01:38.6]} 42... fxe4
{[%clk 0:01:12.1]} 43. c4+ {[%clk 0:01:38.8]} 43... Bxc4 {[%clk 0:01:00.6]} 44.
Nxc4 {[%clk 0:01:39.7]} 44... Kxc4 {[%clk 0:01:00.1]} 45. Kc2 {[%clk 0:01:40.6]}
45... Kd4 {[%clk 0:00:52.6]} 46. Kd2 {[%clk 0:01:40.8]} 46... Kc4 {[%clk
0:00:47.2]} 47. Ke3 {[%clk 0:01:40.9]} 47... Kb3 {[%clk 0:00:47.8]} 48. Kxe4
{[%clk 0:01:41]} 48... Kxa3 {[%clk 0:00:48.5]} 49. Kf4 {[%clk 0:01:41.5]} 49...
Kb4 {[%clk 0:00:49.4]} 50. Kg5 {[%clk 0:01:40.2]} 50... Kc5 {[%clk 0:00:50.3]}
51. Kg6 {[%clk 0:01:30.9]} 51... Kd6 {[%clk 0:00:51.2]} 52. Kxg7 {[%clk
0:01:31.4]} 1-0

[Event "Early-Titled-Tuesday-Blitz-April-02-2024"]
[Site "Chess.com"]
[Date "2024.04.02"]
[Round "11"]
[White "mishanick"]
[Black "Kirill_Klukin"]
[Result "1-0"]
[WhiteElo "3026"]
[BlackElo "2811"]
[TimeControl "180+1"]
[EndTime "10:06:22 PDT"]
[Termination "mishanick won by resignation"]

1. d4 {[%clk 0:03:00.9]} 1... e6 {[%clk 0:02:59.7]} 2. c4 {[%clk 0:03:01.1]}
2... f5 {[%clk 0:02:59.7]} 3. Nc3 {[%clk 0:03:01.1]} 3... Nf6 {[%clk 0:03:00.2]}
4. e3 {[%clk 0:03:01.5]} 4... b6 {[%clk 0:02:57.4]} 5. Bd3 {[%clk 0:03:01.7]}
5... Bb7 {[%clk 0:02:57.4]} 6. f3 {[%clk 0:03:02.4]} 6... Bb4 {[%clk 0:02:54.9]}
7. Ne2 {[%clk 0:03:02.8]} 7... O-O {[%clk 0:02:54.8]} 8. a3 {[%clk 0:03:02.8]}
8... Bxc3+ {[%clk 0:02:53.3]} 9. Nxc3 {[%clk 0:03:03.7]} 9... d6 {[%clk
0:02:46.2]} 10. O-O {[%clk 0:03:03.6]} 10... Nbd7 {[%clk 0:02:44.9]} 11. Bd2
{[%clk 0:03:01.9]} 11... Qe7 {[%clk 0:02:44.6]} 12. Be1 {[%clk 0:03:02.3]} 12...
g6 {[%clk 0:02:33.4]} 13. Bh4 {[%clk 0:03:01.8]} 13... Qg7 {[%clk 0:02:25.6]}
14. b4 {[%clk 0:02:56.3]} 14... e5 {[%clk 0:02:12.2]} 15. d5 {[%clk 0:02:53.8]}
15... a5 {[%clk 0:02:04.5]} 16. Qd2 {[%clk 0:02:52.2]} 16... Ba6 {[%clk
0:01:28.5]} 17. Be2 {[%clk 0:02:41]} 17... g5 {[%clk 0:01:13.9]} 18. Bf2 {[%clk
0:02:40]} 18... h5 {[%clk 0:01:13.8]} 19. Bd3 {[%clk 0:02:38.5]} 19... e4 {[%clk
0:00:42.9]} 20. fxe4 {[%clk 0:02:37.1]} 20... fxe4 {[%clk 0:00:42.1]} 21. Be2
{[%clk 0:02:32.5]} 21... Ne5 {[%clk 0:00:40.9]} 22. Qd4 {[%clk 0:02:32.8]} 22...
Rae8 {[%clk 0:00:27.7]} 23. Bg3 {[%clk 0:02:30.8]} 23... Bc8 {[%clk 0:00:27.9]}
24. c5 {[%clk 0:02:25.7]} 24... axb4 {[%clk 0:00:26.4]} 25. axb4 {[%clk
0:02:25.1]} 25... bxc5 {[%clk 0:00:26.9]} 26. bxc5 {[%clk 0:02:26]} 26... h4
{[%clk 0:00:27.4]} 27. Bxe5 {[%clk 0:02:25.4]} 27... Rxe5 {[%clk 0:00:28.3]} 28.
Ra7 {[%clk 0:02:24.1]} 28... Rf7 {[%clk 0:00:25.3]} 29. Ra8 {[%clk 0:02:15.9]}
29... Rf8 {[%clk 0:00:24.2]} 30. Nb5 {[%clk 0:02:15.9]} 30... Kh7 {[%clk
0:00:14.9]} 31. cxd6 {[%clk 0:02:16]} 31... Rxd5 {[%clk 0:00:15.3]} 32. Qc3
{[%clk 0:02:12.5]} 32... c6 {[%clk 0:00:04.3]} 33. Ra7 {[%clk 0:02:07.2]} 33...
Rf7 {[%clk 0:00:04.2]} 34. Rxf7 {[%clk 0:02:03.4]} 34... Qxf7 {[%clk 0:00:04.5]}
35. Rxf6 {[%clk 0:02:03.6]} 35... Qg7 {[%clk 0:00:05]} 36. Bh5 {[%clk
0:01:56.3]} 36... Be6 {[%clk 0:00:01.5]} 37. Bg6+ {[%clk 0:01:52.8]} 37... Kh8
{[%clk 0:00:01.1]} 38. Rf8+ {[%clk 0:01:51.2]} 38... Bg8 {[%clk 0:00:01.8]} 39.
Bf7 {[%clk 0:01:37.6]} 39... Qxc3 {[%clk 0:00:01.3]} 40. Rxg8+ {[%clk
0:01:37.3]} 40... Kh7 {[%clk 0:00:01.6]} 41. Nxc3 {[%clk 0:01:38.2]} 41... Rxd6
{[%clk 0:00:02.2]} 1-0

[Event "Early-Titled-Tuesday-Blitz-April-02-2024"]
[Site "Chess.com"]
[Date "2024.04.02"]
[Round "11"]
[White "zano2023"]
[Black "David_George21"]
[Result "0-1"]
[WhiteElo "2222"]
[BlackElo "2343"]
[TimeControl "180+1"]
[EndTime "10:06:25 PDT"]
[Termination "David_George21 won by resignation"]

1. d4 {[%clk 0:02:57.2]} 1... Nf6 {[%clk 0:02:57.8]} 2. Nd2 {[%clk 0:02:56.1]}
2... c5 {[%clk 0:02:55.6]} 3. e3 {[%clk 0:02:54.5]} 3... Nc6 {[%clk 0:02:54.2]}
4. Ngf3 {[%clk 0:02:54.6]} 4... e6 {[%clk 0:02:53.8]} 5. c3 {[%clk 0:02:55.1]}
5... d5 {[%clk 0:02:53.3]} 6. Bd3 {[%clk 0:02:55.6]} 6... Bd6 {[%clk 0:02:53.7]}
7. O-O {[%clk 0:02:56]} 7... O-O {[%clk 0:02:54]} 8. dxc5 {[%clk 0:02:56.5]}
8... Bxc5 {[%clk 0:02:54]} 9. e4 {[%clk 0:02:57.1]} 9... Qc7 {[%clk 0:02:50.7]}
10. Qe2 {[%clk 0:02:55.3]} 10... dxe4 {[%clk 0:02:51]} 11. Nxe4 {[%clk
0:02:55.5]} 11... Nxe4 {[%clk 0:02:51.6]} 12. Qxe4 {[%clk 0:02:55.8]} 12... f5
{[%clk 0:02:52.1]} 13. Qe2 {[%clk 0:02:53]} 13... e5 {[%clk 0:02:52.3]} 14. Bc4+
{[%clk 0:02:52.4]} 14... Kh8 {[%clk 0:02:51]} 15. Ng5 {[%clk 0:02:53.1]} 15...
g6 {[%clk 0:02:47.4]} 16. b4 {[%clk 0:02:46.9]} 16... Bd6 {[%clk 0:02:41.8]} 17.
a4 {[%clk 0:02:36.5]} 17... e4 {[%clk 0:02:38.9]} 18. h3 {[%clk 0:02:33.4]}
18... Qe7 {[%clk 0:02:26.6]} 19. h4 {[%clk 0:02:23.1]} 19... h6 {[%clk
0:02:11.5]} 20. Nh3 {[%clk 0:02:03.2]} 20... Qxh4 {[%clk 0:02:09.3]} 21. Rd1
{[%clk 0:02:01.6]} 21... Be5 {[%clk 0:01:53.7]} 22. Qe3 {[%clk 0:01:56.2]} 22...
f4 {[%clk 0:01:35.4]} 23. Qxe4 {[%clk 0:01:39.6]} 23... Bf5 {[%clk 0:01:29.5]}
24. Qf3 {[%clk 0:01:32.5]} 24... Bg4 {[%clk 0:01:28.2]} 25. Qd3 {[%clk
0:01:21.8]} 25... Rad8 {[%clk 0:01:19.6]} 26. Bd5 {[%clk 0:01:21.8]} 26... Bxd1
{[%clk 0:01:12.3]} 27. Qxd1 {[%clk 0:01:19.5]} 27... f3 {[%clk 0:01:07.6]} 28.
Qb3 {[%clk 0:00:37.4]} 28... Qg4 {[%clk 0:01:01.5]} 29. Bxf3 {[%clk 0:00:20.4]}
29... Rxf3 {[%clk 0:00:59.5]} 0-1

[Event "Early-Titled-Tuesday-Blitz-April-02-2024"]
[Site "Chess.com"]
[Date "2024.04.02"]
[Round "11"]
[White "visa"]
[Black "Rawnsdale"]
[Result "0-1"]
[WhiteElo "2360"]
[BlackElo "2529"]
[TimeControl "180+1"]
[EndTime "10:06:31 PDT"]
[Termination "Rawnsdale won by checkmate"]

1. Nf3 {[%clk 0:02:57.6]} 1... d5 {[%clk 0:02:59.4]} 2. b3 {[%clk 0:02:57.7]}
2... Nf6 {[%clk 0:02:58.4]} 3. Bb2 {[%clk 0:02:58.2]} 3... Bf5 {[%clk
0:02:58.8]} 4. g3 {[%clk 0:02:55.8]} 4... e6 {[%clk 0:02:59.1]} 5. Bg2 {[%clk
0:02:56.1]} 5... Be7 {[%clk 0:02:59.7]} 6. Nh4 {[%clk 0:02:54]} 6... Bg4 {[%clk
0:02:53.1]} 7. h3 {[%clk 0:02:52.3]} 7... Bh5 {[%clk 0:02:53.4]} 8. Nf3 {[%clk
0:02:27.2]} 8... Nbd7 {[%clk 0:02:50.8]} 9. g4 {[%clk 0:02:20]} 9... Bg6 {[%clk
0:02:50.6]} 10. Nh4 {[%clk 0:02:19.7]} 10... Be4 {[%clk 0:02:46.9]} 11. Nf3
{[%clk 0:02:05.5]} 11... h6 {[%clk 0:02:37.3]} 12. d3 {[%clk 0:02:04.6]} 12...
Bxf3 {[%clk 0:02:37.5]} 13. Bxf3 {[%clk 0:01:54.1]} 13... c6 {[%clk 0:02:33.3]}
14. e4 {[%clk 0:01:54.1]} 14... dxe4 {[%clk 0:02:28.6]} 15. dxe4 {[%clk
0:01:52.6]} 15... Nc5 {[%clk 0:02:28.7]} 16. Qxd8+ {[%clk 0:01:49.3]} 16... Rxd8
{[%clk 0:02:29.6]} 17. Nd2 {[%clk 0:01:49]} 17... O-O {[%clk 0:02:18.3]} 18. e5
{[%clk 0:01:46.4]} 18... Nd5 {[%clk 0:02:16.3]} 19. Bxd5 {[%clk 0:01:46.3]}
19... Rxd5 {[%clk 0:02:11.3]} 20. Nc4 {[%clk 0:01:35]} 20... Rfd8 {[%clk
0:01:57]} 21. O-O {[%clk 0:01:27.4]} 21... Ne4 {[%clk 0:01:52.1]} 22. Ne3 {[%clk
0:01:13.7]} 22... Rd2 {[%clk 0:01:48.8]} 23. Rad1 {[%clk 0:01:12.8]} 23... Bc5
{[%clk 0:01:47.1]} 24. Rxd2 {[%clk 0:01:11.9]} 24... Rxd2 {[%clk 0:01:46.2]} 25.
Bc1 {[%clk 0:00:56.3]} 25... Bxe3 {[%clk 0:01:41.6]} 26. Bxd2 {[%clk 0:00:55.8]}
26... Bxd2 {[%clk 0:01:42.4]} 27. Rd1 {[%clk 0:00:50.1]} 27... Bc3 {[%clk
0:01:36.6]} 28. Rd7 {[%clk 0:00:45.5]} 28... Nc5 {[%clk 0:01:36.7]} 29. Rd8+
{[%clk 0:00:42.8]} 29... Kh7 {[%clk 0:01:37]} 30. f4 {[%clk 0:00:43.2]} 30... g5
{[%clk 0:01:30.1]} 31. Rf8 {[%clk 0:00:24.4]} 31... Kg7 {[%clk 0:01:28.6]} 32.
Ra8 {[%clk 0:00:21.3]} 32... gxf4 {[%clk 0:01:27.5]} 33. Rxa7 {[%clk 0:00:21.2]}
33... Bxe5 {[%clk 0:01:20.4]} 34. b4 {[%clk 0:00:20.4]} 34... Ne4 {[%clk
0:01:19.3]} 35. Rxb7 {[%clk 0:00:20]} 35... f3 {[%clk 0:01:19.7]} 36. b5 {[%clk
0:00:06.9]} 36... Bd4+ {[%clk 0:01:20]} 37. Kf1 {[%clk 0:00:02.8]} 37... Ng3+
{[%clk 0:01:19.8]} 38. Ke1 {[%clk 0:00:03.2]} 38... f2+ {[%clk 0:01:20.7]} 39.
Kd2 {[%clk 0:00:03.6]} 39... f1=Q {[%clk 0:01:21.3]} 40. bxc6 {[%clk 0:00:03.5]}
40... Qe2+ {[%clk 0:01:21.7]} 41. Kc1 {[%clk 0:00:03]} 41... Qe1# {[%clk
0:01:22]} 0-1

[Event "Early-Titled-Tuesday-Blitz-April-02-2024"]
[Site "Chess.com"]
[Date "2024.04.02"]
[Round "11"]
[White "WindWhistler11"]
[Black "RantomOpening"]
[Result "0-1"]
[WhiteElo "2439"]
[BlackElo "2563"]
[TimeControl "180+1"]
[EndTime "10:06:37 PDT"]
[Termination "RantomOpening won by resignation"]

1. Nf3 {[%clk 0:02:56.9]} 1... d5 {[%clk 0:02:59.7]} 2. c4 {[%clk 0:02:56.8]}
2... e6 {[%clk 0:02:59.9]} 3. g3 {[%clk 0:02:57.1]} 3... d4 {[%clk 0:02:37]} 4.
Bg2 {[%clk 0:02:51.1]} 4... Nf6 {[%clk 0:02:37]} 5. e3 {[%clk 0:02:51.7]} 5...
c5 {[%clk 0:02:36.5]} 6. exd4 {[%clk 0:02:51.8]} 6... cxd4 {[%clk 0:02:37.4]} 7.
O-O {[%clk 0:02:52.1]} 7... Nc6 {[%clk 0:02:37.2]} 8. Re1 {[%clk 0:02:52.8]}
8... Bd6 {[%clk 0:02:34.9]} 9. d3 {[%clk 0:02:51.7]} 9... h6 {[%clk 0:02:33.6]}
10. Na3 {[%clk 0:02:51.8]} 10... O-O {[%clk 0:02:30.2]} 11. Nc2 {[%clk 0:02:51]}
11... e5 {[%clk 0:02:30.4]} 12. Rb1 {[%clk 0:02:31.3]} 12... a5 {[%clk
0:02:26.3]} 13. a3 {[%clk 0:02:30.5]} 13... a4 {[%clk 0:02:26.9]} 14. Bd2 {[%clk
0:02:30.8]} 14... Bf5 {[%clk 0:02:25.8]} 15. Bb4 {[%clk 0:02:30.3]} 15... Nxb4
{[%clk 0:02:25.2]} 16. Nxb4 {[%clk 0:02:27.8]} 16... Bxb4 {[%clk 0:02:18.2]} 17.
axb4 {[%clk 0:02:27.6]} 17... a3 {[%clk 0:02:18.9]} 18. Rxe5 {[%clk 0:02:18.1]}
18... a2 {[%clk 0:02:12]} 19. Ra1 {[%clk 0:02:11.1]} 19... Bh7 {[%clk
0:02:12.2]} 20. b3 {[%clk 0:01:55.5]} 20... Ra3 {[%clk 0:02:03.5]} 21. Re2
{[%clk 0:01:47.3]} 21... Qa8 {[%clk 0:01:57.9]} 22. Nxd4 {[%clk 0:01:31.5]}
22... Rd8 {[%clk 0:01:57]} 23. Nb5 {[%clk 0:01:31.8]} 23... Rxd3 {[%clk
0:01:52.3]} 24. Rd2 {[%clk 0:01:31.2]} 24... Raxb3 {[%clk 0:01:49.7]} 25. Rxd3
{[%clk 0:00:42.8]} 25... Rxd3 {[%clk 0:01:47.2]} 26. Qe2 {[%clk 0:00:29.2]}
26... Qa4 {[%clk 0:01:36.9]} 27. Rxa2 {[%clk 0:00:12.3]} 27... Qd1+ {[%clk
0:01:31.9]} 28. Bf1 {[%clk 0:00:11]} 28... Bf5 {[%clk 0:01:30]} 29. Kg2 {[%clk
0:00:07.1]} 29... Qb1 {[%clk 0:01:16.5]} 30. Ra8+ {[%clk 0:00:07]} 30... Kh7
{[%clk 0:01:16]} 31. Qe5 {[%clk 0:00:06.7]} 31... Be4+ {[%clk 0:01:15]} 32. Kg1
{[%clk 0:00:02.2]} 0-1